fUSD/lending_fUSD_20250712
["ID","MTS","AMOUNT","RATE_DAILY","PERIOD"]
[371337369,1752278524659,300.0,0.00033,120]
[371337370,1752278526253,240.79,0.00034,30]
[371337371,1752278528575,150.99,0.00034,30]
[371337372,1752278529188,153.94,0.00013699,2]
[371337376,1752278752131,-153.94,0.00020951,2]
[371337377,1752278752152,-300.0,0.00021918,2]
[371337378,1752278752173,-189.18313641,0.00027397,2]
[371337379,1752278752195,-153.94,0.00028203,2]
[371337380,1752278752216,-70.09924473,0.0003,3]
[371337381,1752278808085,-79.90075527,0.0003,3]
[371337382,1752278808107,-138.64859645,0.0003051,2]
[371337383,1752278821744,7400.0,0.000345,30]
[371337384,1752278827087,-111.35140355,0.0003051,2]
[371337385,1752278827109,-88.405044,0.0003102,3]
[371337386,1752278831105,-61.594956,0.0003102,3]
[371337387,1752278831126,-150.0,0.0003204,3]
[371337388,1752278831148,-26.37866279,0.0003296,2]
[371337389,1752278833083,-352.85995426,0.0003296,2]
[371337390,1752278841091,-194.57,0.00017127,2]
[371337391,1752278841113,-167.15302424,0.0003296,2]
[371337392,1752278841134,-250.0,0.00033,2]
[371337393,1752278841156,-150.0,0.0003306,3]
[371337394,1752278841177,-6041.88059,0.00033531,2]
[371337395,1752278841203,-646.66106841,0.00033699,3]
[371337396,1752278844148,-234.61528439,0.00033699,3]
[371337397,1752278890106,-180.0,0.00015,2]
[371337398,1752278892491,-70.0,0.00015,2]
[371337402,1752278947082,-300.0,0.00017,2]
[371337403,1752278947261,-718.7236472,0.00033699,3]
[371337404,1752278947282,-500.0,0.000337,2]
[371337405,1752278947305,-500.0,0.000337,2]
[371337406,1752278947329,-500.0,0.000337,2]
[371337407,1752278947350,-301.2687524,0.000337,2]
[371337408,1752278947371,-5000.0,0.00034,2]
[371337409,1752278947395,-798.33,0.00034,2]
[371337410,1752278947415,-266.13,0.00034,2]
[371337411,1752278947436,-150.99,0.00034,2]
[371337412,1752278947458,-150.0,0.0003408,3]
[371337413,1752278948352,-5000.0,0.00035,2]
[371337414,1752278948373,-150.0,0.000351,3]
[371337415,1752278948395,-153.94,0.00035455,2]
[371337416,1752278948416,-837.59737086,0.00035736,2]
[371337417,1752278948437,-210.46146674,0.00035736,2]
[371337418,1752278948457,-160.0,0.00035736,2]
[371337419,1752278948479,-5000.0,0.00036,2]
[371337420,1752278948500,-546.39164128,0.0003605,2]
[371337421,1752278948539,-150.0,0.0003612,3]
[371337422,1752278948569,-171.181,0.0003612,44]
[371337423,1752278948591,-790.845,0.0003612,44]
[371337424,1752278948619,-549.46084664,0.00036328,3]
[371337425,1752278951083,-1690.53915336,0.00036328,3]
[371337426,1752278951109,-709.17,0.00036889,2]
[371337427,1752278951129,-810.0,0.00036999,2]
[371337428,1752278951148,-4175.04509629,0.00037,2]
[371337429,1752278956077,-824.95490371,0.00037,2]
[371337430,1752278956100,-250.0,0.00037069,2]
[371337431,1752278956122,-537.72529478,0.000372,120]
[371337432,1752278956144,-150.0,0.0003761,2]
[371337433,1752278956165,-1000.0,0.00037788,2]
[371337434,1752278956186,-1000.0,0.00037789,2]
[371337435,1752278956208,-7604.57027383,0.0003799,2]
[371337436,1752278959279,-291.31760776,0.0003799,2]
[371337437,1752278966238,151.0,0.00033041,2]
[371337438,1752278967669,10.57390242,0.00033914,2]
[371337439,1752278967690,140.42609758,0.00033914,2]
[371337440,1752278984258,151.0,0.00033928,2]
[371337441,1752278992573,333.0,0.000345,30]
[371337442,1752279001927,151.0,0.00033928,2]
[371337443,1752279019263,151.0,0.00033799,2]
[371337444,1752279032318,-1600.0,0.00037989,3]
[371337446,1752279032328,-353.91799829,0.00037989,2]
[371337447,1752279032344,-46.08200171,0.00037989,2]
[371337448,1752279032354,-837.59737086,0.0003799,2]
[371337449,1752279032364,-210.46146674,0.0003799,2]
[371337450,1752279032373,-160.0,0.0003799,2]
[371337451,1752279032382,-1134.29217827,0.0003799,2]
[371337452,1752279032405,-4333.74441355,0.0003799,2]
[371337453,1752279032417,-8533.23204562,0.0003799,2]
[371337454,1752279032427,-726.60601821,0.00037999,2]
[371337455,1752279032437,-5000.0,0.00038,2]
[371337456,1752279032447,-152.25,0.000381,31]
[371337457,1752279032456,-152.25,0.000381,31]
[371337458,1752279032466,-152.25,0.000381,31]
[371337459,1752279032475,-152.25,0.000381,31]
[371337460,1752279032485,-152.25,0.000381,31]
[371337461,1752279032495,-164.41,0.00038648,2]
[371337462,1752279032504,-1862.24,0.00039,30]
[371337463,1752279032514,-7732.97580944,0.000392,7]
[371337464,1752279032524,-188.36,0.00039239,2]
[371337465,1752279032535,-333.0,0.00039289,15]
[371337466,1752279032546,-9898.43112485,0.0003929,2]
[371337467,1752279032556,-226.44,0.00039423,2]
[371337468,1752279032565,-3572.73817,0.0003958,2]
[371337469,1752279032575,-150.0,0.00039637,2]
[371337470,1752279032587,-500.0,0.00039645,2]
[371337471,1752279032596,-500.0,0.00039645,2]
[371337472,1752279032607,-500.0,0.00039645,2]
[371337473,1752279032616,-500.0,0.00039645,2]
[371337474,1752279032626,-500.0,0.00039645,2]
[371337475,1752279032635,-500.0,0.00039645,2]
[371337476,1752279032645,-500.0,0.00039645,2]
[371337477,1752279032655,-500.0,0.00039645,2]
[371337478,1752279032664,-500.0,0.00039645,2]
[371337483,1752279032823,-500.0,0.00039645,2]
[371337484,1752279032835,-500.0,0.00039645,2]
[371337485,1752279032845,-500.0,0.00039645,2]
[371337486,1752279032855,-500.0,0.00039645,2]
[371337487,1752279032865,-500.0,0.00039645,2]
[371337488,1752279032875,-500.0,0.00039645,2]
[371337489,1752279032885,-500.0,0.00039645,2]
[371337490,1752279032895,-500.0,0.00039645,2]
[371337491,1752279032905,-500.0,0.00039645,2]
[371337492,1752279032915,-500.0,0.00039645,2]
[371337493,1752279032924,-500.0,0.00039645,2]
[371337494,1752279032934,-3572.73816,0.00039681,2]
[371337495,1752279032943,-284.3,0.000397,120]
[371337496,1752279032954,-55223.21310648,0.00039705,120]
[371337497,1752279032963,-161.87948765,0.00039773,5]
[371337499,1752279032973,-500.0,0.00039773,5]
[371337502,1752279032982,-500.0,0.00039773,5]
[371337505,1752279032992,-1322.39462276,0.00039842,2]
[371337508,1752279033002,-358.04226656,0.0004,120]
[371337510,1752279033011,-4508.0,0.0004,2]
[371337511,1752279033021,-3572.73817,0.0004008,2]
[371337514,1752279033031,-10382.79,0.0004029,2]
[371337515,1752279033040,-1000.0,0.00040321,5]
[371337517,1752279033051,-153.85,0.00040566,120]
[371337519,1752279033060,-3572.73817,0.0004058,5]
[371337520,1752279033070,-255.1,0.00040604,2]
[371337521,1752279033080,-560.0,0.00040606,5]
[371337522,1752279033090,-250.0,0.0004074,2]
[371337523,1752279033099,-2240.0,0.0004076,5]
[371337524,1752279033110,-205.4466314,0.00040797,2]
[371337525,1752279033119,-547.48004308,0.00040868,5]
[371337526,1752279033129,-164.0,0.00041,90]
[371337527,1752279033139,-3572.73816,0.0004108,7]
[371337528,1752279033149,-226.44,0.00041394,2]
[371337529,1752279033158,-156.64,0.00041394,2]
[371337530,1752279033168,-666.0,0.000414,2]
[371337531,1752279033177,-3572.73817,0.0004158,9]
[371337532,1752279033187,-156.64,0.00041602,2]
[371337533,1752279033199,-156.64,0.00041809,2]
[371337534,1752279033209,-156.64,0.00042017,2]
[371337535,1752279033219,-156.64,0.00042224,2]
[371337536,1752279033229,-200.0,0.00042316,7]
[371337537,1752279033239,-156.64,0.00042432,2]
[371337538,1752279033249,-562.73454839,0.00042507,58]
[371337539,1752279033259,-1000.0,0.00042512,2]
[371337540,1752279033268,-1000.0,0.00042607,2]
[371337541,1752279033278,-2913.55,0.00042608,2]
[371337542,1752279033288,-5840.5418932,0.00042608,2]
[371337543,1752279033301,-1400.0,0.00042608,2]
[371337544,1752279033329,-3535.38674942,0.00042608,2]
[371337545,1752279033342,-282.7525456,0.00042608,2]
[371337546,1752279033353,-251.566,0.00042608,2]
[371337547,1752279033365,-260.099,0.00042608,2]
[371337548,1752279033377,-2044.33696187,0.00042608,2]
[371337549,1752279033397,-488.70112046,0.00042608,2]
[371337550,1752279033408,-9796.61572945,0.00042608,2]
[371337551,1752279033418,-2681.82,0.00042608,120]
[371337552,1752279033428,-168.0,0.00042636,2]
[371337553,1752279033437,-156.64,0.00042639,2]
[371337554,1752279033447,-153.94,0.00042708,2]
[371337555,1752279033457,-156.64,0.00042847,2]
[371337556,1752279033467,-186.56,0.0004299,2]
[371337557,1752279033477,-2281.77829985,0.00043,30]
[371337558,1752279033487,-3178.6,0.00043,120]
[371337559,1752279033496,-156.64,0.00043054,2]
[371337560,1752279033506,-156.64,0.00043262,2]
[371337561,1752279033516,-226.44,0.00043366,2]
[371337562,1752279033526,-168.0,0.00043379,2]
[371337563,1752279033537,-783.0,0.00043404,5]
[371337564,1752279033549,-168.0,0.00043426,2]
[371337565,1752279033559,-156.64,0.00043469,2]
[371337566,1752279033568,-284.3,0.0004367,120]
[371337567,1752279033579,-156.64,0.00043677,2]
[371337568,1752279033588,-3135.0,0.00043734,5]
[371337569,1752279033598,-156.64,0.00043884,2]
[371337570,1752279033610,-156.64,0.00044092,2]
[371337571,1752279033620,-168.0,0.00044246,2]
[371337572,1752279033630,-156.64,0.00044299,2]
[371337573,1752279033640,-168.0,0.0004445,2]
[371337574,1752279033649,-156.64,0.00044507,2]
[371337575,1752279033659,-168.0,0.0004452,2]
[371337576,1752279033668,-156.64,0.00044714,2]
[371337577,1752279033678,-156.64,0.00044922,2]
[371337578,1752279033688,-150.0,0.00045115,120]
[371337579,1752279033698,-156.64,0.00045129,2]
[371337580,1752279033708,-150.0,0.00045173,120]
[371337581,1752279033717,-156.64,0.00045336,2]
[371337582,1752279033727,-226.44,0.00045337,2]
[371337583,1752279033736,-1394.46378504,0.000455,2]
[371337584,1752279033746,-155.0,0.000458,120]
[371337585,1752279033755,-4390.0,0.00046925,5]
[371337586,1752279033765,-1000.0,0.00047236,2]
[371337587,1752279033775,-226.44,0.00047308,2]
[371337588,1752279033785,-284.3,0.0004764,120]
[371337589,1752279033794,-152.25,0.000485,45]
[371337590,1752279033804,-152.25,0.000485,45]
[371337591,1752279033814,-152.25,0.000485,45]
[371337592,1752279033824,-152.25,0.000485,45]
[371337593,1752279033833,-152.25,0.000485,45]
[371337594,1752279033843,-152.25,0.000485,45]
[371337595,1752279033856,-152.25,0.000485,45]
[371337596,1752279033866,-152.25,0.000485,45]
[371337597,1752279033877,-152.25,0.000485,45]
[371337598,1752279033887,-152.25,0.000485,45]
[371337599,1752279033897,-164.05512297,0.000499,120]
[371337600,1752279033909,-164.05512291,0.000499,120]
[371337601,1752279033919,-153.94,0.0004996,2]
[371337602,1752279033929,-2363.0,0.00050348,10]
[371337603,1752279033940,-156.0,0.000514,120]
[371337604,1752279033950,-709.17,0.00051645,2]
[371337605,1752279033960,-164.05512291,0.00051755,120]
[371337606,1752279033970,-228.56545421,0.00051957,28]
[371337607,1752279033981,-1000.0,0.00051959,120]
[371337608,1752279033990,-186.56,0.0005199,30]
[371337609,1752279034001,-40000.0,0.00052,120]
[371337610,1752279034011,-505.0,0.00052,20]
[371337611,1752279034022,-2000.0,0.00052,120]
[371337612,1752279034032,-2000.0,0.000525,120]
[371337613,1752279034042,-5508.0,0.000526,120]
[371337614,1752279034052,-1838.16510874,0.00053,120]
[371337615,1752279034062,-5717.70824036,0.0005399,4]
[371337616,1752279034072,-186.56,0.0005399,30]
[371337617,1752279034082,-5446.81163301,0.00054,120]
[371337618,1752279034099,-1024.69451503,0.00054,120]
[371337619,1752279034114,-436.69589774,0.00054,120]
[371337620,1752279036831,151.0,0.00033495,2]
[371337630,1752279038712,-96.35137584,0.00039704,15]
[371337631,1752279038724,-403.64862416,0.00039704,15]
[371337632,1752279038734,-126.14109487,0.00039704,15]
[371337633,1752279038745,-373.85890513,0.00039704,15]
[371337634,1752279038755,-500.0,0.00039704,15]
[371337635,1752279038764,-351.85028453,0.00039704,15]
[371337636,1752279038776,-148.14971547,0.00039704,15]
[371337637,1752279038785,-318.4713857,0.00039704,15]
[371337638,1752279038795,-500.0,0.00041096,31]
[371337639,1752279038805,-500.0,0.00041096,31]
[371337640,1752279038815,-347.313903,0.00041096,31]
[371337641,1752279038824,-151.36927006,0.00054,120]
[371337642,1752279038837,-1765.79648198,0.00054,120]
[371337643,1752279038849,-4463.0994,0.00054,120]
[371337772,1752279040789,-399.43178386,0.00054,120]
[371337774,1752279040809,-26312.10101832,0.00054,120]
[371337775,1752279040818,-505.0,0.00054,20]
[371337776,1752279040828,-2000.0,0.00054,120]
[371337777,1752279040837,-155.5906377,0.00054,120]
[371337778,1752279040846,-5508.0,0.000542,120]
[371337779,1752279040856,-5717.70824036,0.00054202,4]
[371337780,1752279040866,-3755.6291877,0.0005429,34]
[371337781,1752279040875,-10026.5706689,0.0005429,15]
[371337782,1752279040885,-500.0,0.00054373,10]
[371337783,1752279040895,-500.0,0.00054373,10]
[371337784,1752279040904,-498.72328307,0.00054373,10]
[371337785,1752279040913,-500.0,0.00054373,10]
[371337786,1752279040922,-189.27281025,0.00054373,10]
[371337787,1752279040931,-500.0,0.00054373,10]
[371337789,1752279040941,-267.51626379,0.00054373,10]
[371337790,1752279040950,-527.05189955,0.0005438,7]
[371337791,1752279040960,-190.72,0.0005438,120]
[371337793,1752279040969,-190.72,0.0005438,120]
[371337795,1752279040977,-190.72,0.0005438,120]
[371337797,1752279040987,-190.72,0.0005438,120]
[371337799,1752279040996,-190.72,0.0005438,120]
[371337801,1752279041006,-190.72,0.0005438,120]
[371337803,1752279041015,-190.72,0.0005438,120]
[371337805,1752279041025,-190.72,0.0005438,120]
[371337807,1752279041034,-186.56,0.0005438,30]
[371337809,1752279041043,-186.56,0.0005438,30]
[371337811,1752279041053,-190.72,0.0005438,120]
[371337813,1752279041062,-190.72,0.0005438,120]
[371337815,1752279041072,-190.72,0.0005438,120]
[371337817,1752279041082,-190.72,0.0005438,120]
[371337818,1752279041092,-5717.70824036,0.0005439,4]
[371337820,1752279041102,-36503.05531443,0.00054453,34]
[371337971,1752279042549,-3487.836312,0.00054453,34]
[371337974,1752279042573,-6784.69802647,0.00054453,34]
[371337977,1752279042586,-1121.15905995,0.00054453,34]
[371337979,1752279042597,-2981.804006,0.00054453,34]
[371337981,1752279042609,-442.27142083,0.00054453,34]
[371338069,1752279043501,-182.1305471,0.0003789,2]
[371338070,1752279043511,-237.84004683,0.00054453,34]
[371338071,1752279043522,-612.66890093,0.00054453,34]
[371338343,1752279046409,-3351.4321,0.00054453,34]
[371338355,1752279046508,-1957.57725856,0.00054453,34]
[371338391,1752279046858,-24.28326132,0.00054453,34]
[371338462,1752279047657,417.29458881,0.00027397,2]
[371338512,1752279048128,250.37675329,0.00027497,2]
[371338722,1752279050293,166.91783552,0.00027597,2]
[371339372,1752279077046,460.0,0.00027397,2]
[371339378,1752279661819,154.24,0.00013699,2]
[371339380,1752279721963,500.0,0.0002637,120]
[371339381,1752279722029,500.0,0.0002911,120]
[371339382,1752279722087,500.0,0.00032898,120]
[371339383,1752279722723,300.0,0.0002637,120]
[371339384,1752279722809,300.0,0.0002911,120]
[371339385,1752279722872,300.0,0.00032898,120]
[371339386,1752279842324,500.0,0.0002637,120]
[371339387,1752279842375,500.0,0.00024315,120]
[371339388,1752279842757,300.0,0.0002637,120]
[371339389,1752279912277,-183.97909101,0.000154,2]
[371339390,1752279924183,-8000.0,0.00018,2]
[371339391,1752279924880,-8000.0,0.00018,2]
[371339392,1752279925299,-171.181,0.0001764,2]
[371339393,1752279925321,-1217.558,0.0001764,2]
[371339394,1752279925343,-6611.261,0.00018,2]
[371339395,1752279926015,-8000.0,0.00018,2]
[371339396,1752279926242,-8000.0,0.00018,2]
[371339397,1752279926708,-8000.0,0.00018,2]
[371339398,1752279927230,-8000.0,0.00018,2]
[371339399,1752279927761,-8000.0,0.00018,2]
[371339400,1752279928271,-8000.0,0.00018,2]
[371339401,1752279928569,-8000.0,0.00018,2]
[371339402,1752279929137,-8000.0,0.00018,2]
[371339403,1752279929691,-8000.0,0.00018,2]
[371339404,1752279930221,-8000.0,0.00018,2]
[371339405,1752279930564,-8000.0,0.00018,2]
[371339406,1752279931048,-8000.0,0.00018,2]
[371339407,1752279931590,-8000.0,0.00018,2]
[371339408,1752279932199,-8000.0,0.00018,2]
[371339409,1752279932471,-8000.0,0.00018,2]
[371339410,1752279933030,-8000.0,0.00018,2]
[371339411,1752279933568,-8000.0,0.00018,2]
[371339412,1752279934141,-8000.0,0.00018,2]
[371339413,1752279934743,-8000.0,0.00018,2]
[371339414,1752279935058,-8000.0,0.00018,2]
[371339415,1752279935412,-8000.0,0.00018,2]
[371339417,1752279937628,4978.75417666,9e-05,2]
[371339418,1752279943440,-7000.0,0.00018,2]
[371339419,1752279956528,24208.20899127,6.94e-05,2]
[371339420,1752279956550,11043.25759976,6.94e-05,2]
[371339421,1752279964101,23016.25893274,8e-05,2]
[371339422,1752279969290,-416.02703143,0.00015,2]
[371339423,1752279978308,-365.86,0.00015,2]
[371339424,1752279979938,-369.93271333,0.00015,2]
[371339425,1752279981452,-460.0,0.00015,2]
[371339426,1752279983602,-460.0,0.00015,2]
[371339427,1752279985770,-200.97526711,0.00015,2]
[371339428,1752279987295,-460.0,0.00015,2]
[371339429,1752279989474,-168.91684107,0.00015,2]
[371339430,1752279993484,-556.0,0.00015,2]
[371339431,1752279996451,-300.0,0.00015,2]
[371339432,1752279999206,-300.0,0.00015,2]
[371339433,1752280003475,-300.0,0.00015,2]
[371339434,1752280005001,-388.02473289,0.00015,2]
[371339435,1752280006542,-184.0,0.00015,2]
[371339436,1752280010043,-151.0,0.00015,2]
[371339437,1752280013083,-837.59737086,0.00015,2]
[371339438,1752280014689,-460.0,0.00015,2]
[371339439,1752280016823,-195.55107693,0.00015,2]
[371339440,1752280019104,-420.0,0.00015,2]
[371339441,1752280025938,-166.82962604,0.00015,2]
[371339442,1752280028246,-152.0,0.00015,2]
[371339443,1752280030914,-226.26258386,0.000149,2]
[371339444,1752280030935,-93.73741614,0.00015,2]
[371339445,1752280033199,-157.87165115,0.00015,2]
[371339446,1752280036153,-233.84348642,0.00015,2]
[371339447,1752280037131,-1232.04675453,0.00015,2]
[371339448,1752280037153,-1997.14095721,0.00015,2]
[371339449,1752280037173,-134.55917873,0.00015,2]
[371339450,1752280038942,-250.0,0.00015,2]
[371339451,1752280048096,-228.76187792,0.00015,2]
[371339452,1752280048128,-259.08532632,0.00015,2]
[371339453,1752280079212,66538.1184675,0.00014,2]
[371339454,1752280079238,50000.0,0.00014,2]
[371339455,1752280079854,-214.8408947,0.00014,2]
[371339456,1752280083675,-300.0,0.00013999,2]
[371339457,1752280083698,-35.1591053,0.00014,2]
[371339458,1752280086056,-203.5675578,0.00014,2]
[371339459,1752280088298,-166.23211371,0.00014,2]
[371339460,1752280089816,-463.51726837,0.00014,2]
[371339461,1752280093469,-447.48273163,0.00014,2]
[371339462,1752280096226,299.95989094,0.000125,2]
[371339463,1752280097379,-259.88838357,0.00014,2]
[371339464,1752280098944,-176.46937527,0.00014,2]
[371339465,1752280103465,1885.51324921,0.0001,2]
[371339466,1752280104097,-200.0,0.000139,2]
[371339467,1752280105185,382.32955472,7.888e-05,2]
[371339468,1752280111920,218.55597545,0.0001,2]
[371339473,1752280115266,2669.75023062,0.0001,2]
[371339474,1752280118149,261.89201178,0.000107,2]
[371339475,1752280122248,1725.71646158,0.00010136,2]
[371339476,1752280122676,43054.26838757,0.00013368,2]
[371339477,1752280127857,-8000.0,0.0001383,2]
[371339478,1752280129350,-1745.84839,0.0001383,2]
[371339479,1752280129386,-650.33078667,0.000139,2]
[371339480,1752280129428,-565.739009,0.00013999,2]
[371339481,1752280129467,-250.71129648,0.00013999,2]
[371339482,1752280129506,-434.92200623,0.00013999,2]
[371339483,1752280129541,-500.0,0.00013999,2]
[371339484,1752280129577,-499.57355239,0.00013999,2]
[371339485,1752280129612,-500.0,0.00013999,2]
[371339486,1752280129648,-500.0,0.00013999,2]
[371339487,1752280129684,-425.37405821,0.00013999,2]
[371339488,1752280129720,-500.0,0.00013999,2]
[371339489,1752280129756,-500.0,0.00013999,2]
[371339490,1752280129794,-458.60206332,0.00013999,2]
[371339491,1752280129838,-262.97574406,0.00013999,2]
[371339492,1752280129876,-205.92309364,0.00013999,2]
[371339493,1752280129961,-294.07690636,0.00013999,2]
[371339494,1752280129995,-500.0,0.00013999,2]
[371339495,1752280130030,-7205.92309364,0.00014,2]
[371339496,1752280130139,-8000.0,0.00014,2]
[371339497,1752280130207,-8000.0,0.00014,2]
[371339498,1752280130604,-8000.0,0.00014,2]
[371339499,1752280131129,-8000.0,0.00014,2]
[371339500,1752280131502,-8000.0,0.00014,2]
[371339501,1752280131844,-8000.0,0.00014,2]
[371339502,1752280132172,-8000.0,0.00014,2]
[371339503,1752280132508,-8000.0,0.00014,2]
[371339504,1752280133098,-8000.0,0.00014,2]
[371339505,1752280133934,-8000.0,0.00014,2]
[371339506,1752280134207,-8000.0,0.00014,2]
[371339507,1752280134681,-8000.0,0.00014,2]
[371339508,1752280135117,-8000.0,0.00014,2]
[371339509,1752280135761,-8000.0,0.00014,2]
[371339510,1752280136259,-8000.0,0.00014,2]
[371339511,1752280136648,-8000.0,0.00014,2]
[371339512,1752280136979,-8000.0,0.00014,2]
[371339513,1752280137558,-8000.0,0.00014,2]
[371339514,1752280137893,-8000.0,0.00014,2]
[371339515,1752280138251,-8000.0,0.00014,2]
[371339516,1752280138799,-8000.0,0.00014,2]
[371339517,1752280145473,-300.0,0.00013999,2]
[371339518,1752280145494,-6700.0,0.00014,2]
[371339519,1752280146074,-263976.524,0.00014,2]
[371339520,1752280150152,-405494.11,0.00014,2]
[371339521,1752280153403,-136856.3336,0.00014,2]
[371339522,1752280154134,-29409.29138,0.00014,2]
[371339523,1752280155547,-8178.838038,0.00014,2]
[371339524,1752280156079,-32247.95876578,0.00014,2]
[371339525,1752280168110,-48200.66888,0.00014,2]
[371339526,1752280170104,-53142.00822,0.00014,2]
[371339527,1752280171096,-4963.575442,0.00014,2]
[371339528,1752280171136,-119366.8322,0.00014,2]
[371339531,1752280193059,-157.69,0.00013699,2]
[371339532,1752280195793,-156.83,0.00013699,2]
[371339543,1752280231432,-289.99060142,0.00013999,2]
[371339544,1752280231450,-10.00939858,0.00013999,2]
[371339545,1752280231465,-300.0,0.00013999,2]
[371339546,1752280231482,-1200.0,0.00013999,2]
[371339547,1752280231497,-150.0,0.00013999,2]
[371339548,1752280231512,-61271.05660938,0.00014,2]
[371339549,1752280231738,-1066.46,0.00014,2]
[371339556,1752280231844,-347.77308168,0.00014,2]
[371339560,1752280231938,-543.91829711,0.00014,2]
[371339562,1752280231958,-777.28298075,0.00014,2]
[371339565,1752280231978,-456.45360339,0.00014,2]
[371339568,1752280231997,-418.5076,0.00014,2]
[371340150,1752280237843,-601.6979223,0.00014,2]
[371340156,1752280237905,-204847.38190368,0.00014,2]
[371340158,1752280237916,-6414.46015284,0.000149,2]
[371340160,1752280237925,-6900.64903764,0.00015,2]
[371340162,1752280237935,-10058.80987285,0.00015,2]
[371340164,1752280237944,-255.0,0.00015119,2]
[371340166,1752280237955,-420.0,0.00015337,2]
[371340168,1752280237965,-1680.0,0.00015399,2]
[371340170,1752280237975,-200.0,0.00016029,2]
[371340172,1752280237985,-433.0,0.00016323,2]
[371340174,1752280237994,-241.50008026,0.00016438,2]
[371340176,1752280238005,-280.0,0.00016802,2]
[371340178,1752280238014,-2351.0,0.00016939,2]
[371340180,1752280238024,-226.26258384,0.00016961,2]
[371340182,1752280238032,-250.0,0.00017519,2]
[371340184,1752280238042,-736.0,0.00017639,2]
[371340185,1752280238051,-400.0,0.000179,6]
[371340187,1752280238061,-288.45838007,0.000179,2]
[371340189,1752280238071,-9495.02739868,0.000179,2]
[371340191,1752280238081,-244.47889136,0.000179,2]
[371340193,1752280238090,-250.0,0.00017955,2]
[371340195,1752280238100,-169.16,0.0001799,2]
[371340197,1752280238109,-169.16,0.0001799,2]
[371340199,1752280238118,-525.94860569,0.0001799,2]
[371340201,1752280238128,-247.0,0.00017999,2]
[371340203,1752280238141,-396.0173063,0.00017999,2]
[371340205,1752280238155,-500.0,0.00017999,2]
[371340207,1752280238164,-500.0,0.00017999,2]
[371340209,1752280238174,-227.41229235,0.00017999,2]
[371340211,1752280238184,-184.08302084,0.00017999,2]
[371340213,1752280238195,-323.6018031,0.00017999,2]
[371340215,1752280238204,-500.0,0.00017999,2]
[371340217,1752280238214,-500.0,0.00017999,2]
[371340219,1752280238223,-500.0,0.00017999,2]
[371340221,1752280238233,-236.17593567,0.00017999,2]
[371340223,1752280238243,-950009.74320707,0.00018,2]
[371340225,1752280238252,-12252.89837112,0.00018,2]
[371340227,1752280238261,-1159.38210925,0.00018,2]
[371340229,1752280238271,-856.05736717,0.000181,2]
[371340231,1752280238280,-178.0,0.00018633,2]
[371340233,1752280238289,-562.73454838,0.00019022,2]
[371340234,1752280238299,-226.26258384,0.00019022,2]
[371340236,1752280238309,-250.0,0.00019122,2]
[371340238,1752280238319,-500.0,0.00019286,2]
[371340240,1752280238328,-500.0,0.00019286,2]
[371340242,1752280238337,-500.0,0.00019286,2]
[371340244,1752280238346,-174.35533668,0.00019286,2]
[371340246,1752280238356,-500.0,0.00019286,2]
[371340248,1752280238366,-501.07695924,0.00019286,2]
[371340250,1752280238376,-500.0,0.00019286,2]